fUSD/lending_fUSD_20260613
["ID","MTS","AMOUNT","RATE_DAILY","PERIOD"]
[424973326,1781364649000,-417.224131,0.00015,2]
[424973313,1781364649000,-238.14103595,0.00015,2]
[424973328,1781364649000,-417.224131,0.00015,2]
[424973341,1781364649000,-2000.0,0.00015212,2]
[424973317,1781364649000,-364.03801114,0.00015,2]
[424973308,1781364649000,-330.23756965,0.00015,2]
[424973310,1781364649000,-151.0,0.00015,2]
[424973309,1781364649000,-443.41252321,0.00015,3]
[424973311,1781364649000,-151.0,0.00015,2]
[424973312,1781364649000,-151.0,0.00015,2]
[424973323,1781364649000,-155.450133,0.00015,2]
[424973314,1781364649000,-500.0,0.00015,2]
[424973315,1781364649000,-214.42310785,0.00015,2]
[424973319,1781364649000,-151.0,0.00015,2]
[424973318,1781364649000,-242.69200743,0.00015,2]
[424973320,1781364649000,-151.0,0.00015,2]
[424973322,1781364649000,-220.68250464,0.00015,2]
[424973324,1781364649000,-300.0,0.00015,2]
[424973321,1781364649000,-331.02375697,0.00015,2]
[424973316,1781364649000,-238.14103595,0.00015,3]
[424973344,1781364649000,-2000.0,0.00015212,2]
[424973359,1781364649000,-150.0,0.000159,2]
[424973345,1781364649000,-2000.0,0.00015212,2]
[424973367,1781364649000,-9999.99,0.00016116,2]
[424973368,1781364649000,-1798.80895522,0.0001619,2]
[424973369,1781364649000,-2000.0,0.00016357,7]
[424973370,1781364649000,-300.0,0.00016437,2]
[424973371,1781364649000,-300.0,0.00016437,2]
[424973372,1781364649000,-1552.4,0.00016438,2]
[424973375,1781364649000,-900.0,0.00016438,2]
[424973373,1781364649000,-538.84,0.00016438,2]
[424973374,1781364649000,-568.18,0.00016438,2]
[424973376,1781364649000,-151.0,0.00016438,2]
[424973377,1781364649000,-151.0,0.00016438,2]
[424973380,1781364649000,-151.0,0.00016438,2]
[424973379,1781364649000,-151.0,0.00016438,2]
[424973381,1781364649000,-151.0,0.00016438,2]
[424973346,1781364649000,-441.42,0.00015212,2]
[424973366,1781364649000,-2253.4177118,0.00016029,2]
[424973364,1781364649000,-57025.00459,0.00016029,2]
[424973378,1781364649000,-151.0,0.00016438,2]
[424973363,1781364649000,-300.0,0.00016028,2]
[424973365,1781364649000,-67659.8481303,0.00016029,2]
[424973347,1781364649000,-3000.0,0.00015225,2]
[424973348,1781364649000,-3000.0,0.00015225,2]
[424973349,1781364649000,-3000.0,0.00015225,2]
[424973351,1781364649000,-1418.95860551,0.00015373,2]
[424973353,1781364649000,-211.0,0.00015566,2]
[424973352,1781364649000,-223.0,0.00015566,2]
[424973354,1781364649000,-1734.62772924,0.00015642,2]
[424973350,1781364649000,-2674.99,0.00015225,2]
[424973356,1781364649000,-180.0,0.00015885,2]
[424973355,1781364649000,-2883.18462174,0.000158,5]
[424973382,1781364649000,-151.0,0.00016438,2]
[424973362,1781364649000,-300.0,0.00016028,2]
[424973360,1781364649000,-216.029201,0.00016,3]
[424973358,1781364649000,-150.0,0.000159,2]
[424973357,1781364649000,-154.37370898,0.000159,2]
[424973361,1781364649000,-300.0,0.00016,2]
[424973395,1781364650000,-151.0,0.00016438,2]
[424973399,1781364650000,-1243.076552,0.00016438,2]
[424973402,1781364650000,-1243.076552,0.00016438,2]
[424973403,1781364650000,-6835.8804759,0.00016583,2]
[424973401,1781364650000,-1243.076552,0.00016438,2]
[424973406,1781364650000,-9426.09515546,0.000167,2]
[424973405,1781364650000,-250.749216,0.000167,2]
[424973408,1781364650000,-1865.36488656,0.00016738,2]
[424973396,1781364650000,-151.0,0.00016438,2]
[424973407,1781364650000,-168.5,0.00016712,2]
[424973404,1781364650000,-2253.4177118,0.00016595,2]
[424973397,1781364650000,-273.641047,0.00016438,2]
[424973385,1781364650000,-151.0,0.00016438,2]
[424973394,1781364650000,-151.0,0.00016438,2]
[424973391,1781364650000,-151.0,0.00016438,2]
[424973393,1781364650000,-151.0,0.00016438,2]
[424973389,1781364650000,-151.0,0.00016438,2]
[424973392,1781364650000,-151.0,0.00016438,2]
[424973390,1781364650000,-151.0,0.00016438,2]
[424973388,1781364650000,-151.0,0.00016438,2]
[424973387,1781364650000,-151.0,0.00016438,2]
[424973386,1781364650000,-151.0,0.00016438,2]
[424973384,1781364650000,-151.0,0.00016438,2]
[424973383,1781364650000,-151.0,0.00016438,2]
[424973409,1781364650000,-369.53,0.00016767,2]
[424973398,1781364650000,-151.0,0.00016438,2]
[424973411,1781364650000,-9426.09515546,0.000168,2]
[424973400,1781364650000,-1243.076552,0.00016438,2]
[424973410,1781364650000,-250.749216,0.000168,2]
[424973412,1781364650000,-522.67,0.00016931,2]
[424973437,1781364650000,-9426.09515546,0.000177,2]
[424973436,1781364650000,-9426.09515546,0.000175,2]
[424973438,1781364650000,-164.65,0.00017702,2]
[424973433,1781364650000,-250.0,0.000175,2]
[424973434,1781364650000,-150.0,0.000175,2]
[424973432,1781364650000,-250.0,0.000175,2]
[424973431,1781364650000,-3644.0,0.0001739,2]
[424973430,1781364650000,-1359.0,0.0001739,2]
[424973428,1781364650000,-383.0,0.0001739,2]
[424973429,1781364650000,-1228.0,0.0001739,2]
[424973427,1781364650000,-1275.0,0.0001739,2]
[424973425,1781364650000,-300.0,0.00017389,2]
[424973435,1781364650000,-189.0,0.000175,2]
[424973421,1781364650000,-2747.3017699,0.00017265,2]
[424973426,1781364650000,-300.0,0.00017389,2]
[424973414,1781364650000,-250.749216,0.00017,2]
[424973417,1781364650000,-250.749216,0.000172,2]
[424973416,1781364650000,-639.26,0.00017,2]
[424973418,1781364650000,-9426.09515546,0.000172,2]
[424973415,1781364650000,-9426.09515546,0.00017,2]
[424973420,1781364650000,-900.0,0.00017244,7]
[424973424,1781364650000,-9426.09515546,0.000173,2]
[424973423,1781364650000,-250.749216,0.000173,2]
[424973422,1781364650000,-1934.38338736,0.00017286,2]
[424973419,1781364650000,-2400.0,0.00017244,2]
[424973413,1781364650000,-1418.95860551,0.00016955,2]
[424973468,1781364651000,-151.0,0.00018382,2]
[424973465,1781364651000,-151.0,0.00018382,2]
[424973475,1781364651000,-151.0,0.00018382,2]
[424973470,1781364651000,-151.0,0.00018382,2]
[424973467,1781364651000,-151.0,0.00018382,2]
[424973469,1781364651000,-151.0,0.00018382,2]
[424973473,1781364651000,-151.0,0.00018382,2]
[424973472,1781364651000,-2080.17592889,0.00018382,2]
[424973471,1781364651000,-500.0,0.00018382,2]
[424973480,1781364651000,-500.0,0.00018382,2]
[424973481,1781364651000,-151.0,0.00018382,2]
[424973478,1781364651000,-500.0,0.00018382,2]
[424973477,1781364651000,-151.0,0.00018382,2]
[424973476,1781364651000,-500.0,0.00018382,2]
[424973479,1781364651000,-151.0,0.00018382,2]
[424973490,1781364651000,-151.0,0.00018382,2]
[424973491,1781364651000,-151.0,0.00018382,2]
[424973482,1781364651000,-500.0,0.00018382,2]
[424973483,1781364651000,-151.0,0.00018382,2]
[424973484,1781364651000,-500.0,0.00018382,2]
[424973466,1781364651000,-151.0,0.00018382,2]
[424973485,1781364651000,-151.0,0.00018382,2]
[424973474,1781364651000,-500.0,0.00018382,2]
[424973464,1781364651000,-151.0,0.00018382,2]
[424973451,1781364651000,-501.0,0.00018,2]
[424973460,1781364651000,-9330.1,0.00018356,2]
[424973488,1781364651000,-500.0,0.00018382,2]
[424973439,1781364651000,-531.0,0.000178,5]
[424973440,1781364651000,-2005.9555727,0.00017834,2]
[424973445,1781364651000,-9426.09515546,0.000179,2]
[424973441,1781364651000,-300.0,0.00017865,2]
[424973442,1781364651000,-314.40729183,0.00017865,2]
[424973447,1781364651000,-7359.34145327,0.00018,2]
[424973443,1781364651000,-118883.0764014,0.00017866,2]
[424973444,1781364651000,-6205.8144652,0.0001787,2]
[424973446,1781364651000,-300.0,0.00017999,2]
[424973448,1781364651000,-1726.70077648,0.00018,2]
[424973449,1781364651000,-9426.09515546,0.00018,2]
[424973450,1781364651000,-350.0,0.00018,2]
[424973453,1781364651000,-7359.34145327,0.000182,2]
[424973454,1781364651000,-1726.70077648,0.000182,2]
[424973455,1781364651000,-9426.09515546,0.000182,2]
[424973452,1781364651000,-300.0,0.00018199,2]
[424973456,1781364651000,-150.0,0.00018233,5]
[424973457,1781364651000,-331.0,0.00018233,5]
[424973459,1781364651000,-151.0,0.00018258,2]
[424973458,1781364651000,-308.0,0.00018233,5]
[424973461,1781364651000,-200.0,0.00018382,2]
[424973463,1781364651000,-151.0,0.00018382,2]
[424973462,1781364651000,-151.0,0.00018382,2]
[424973486,1781364651000,-500.0,0.00018382,2]
[424973505,1781364651000,-7359.34145327,0.000184,2]
[424973489,1781364651000,-151.0,0.00018382,2]
[424973520,1781364651000,-1726.70077648,0.000189,2]
[424973521,1781364651000,-200.0,0.0001893,2]
[424973522,1781364651000,-2157.14243826,0.0001893,2]
[424973524,1781364651000,-1183.75410709,0.00019,2]
[424973523,1781364651000,-200.0,0.0001895,4]
[424973525,1781364651000,-3923.88410371,0.00019,2]
[424973530,1781364651000,-265.06910256,0.00019178,2]
[424973526,1781364651000,-394.27,0.00019,7]
[424973529,1781364651000,-1726.70077648,0.000191,2]
[424973528,1781364651000,-7359.34145327,0.000191,2]
[424973531,1781364651000,-238.56219231,0.00019178,2]
[424973533,1781364651000,-168.56113,0.00019178,2]
[424973534,1781364651000,-168.56113,0.00019178,2]
[424973542,1781364651000,-501.0,0.00019409,3]
[424973541,1781364651000,-151.0,0.00019354,2]
[424973532,1781364651000,-249.26370565,0.00019178,2]
[424973538,1781364651000,-1726.70077648,0.000193,2]
[424973539,1781364651000,-300.0,0.00019338,2]
[424973536,1781364651000,-168.56113,0.00019178,2]
[424973537,1781364651000,-7359.34145327,0.000193,2]
[424973540,1781364651000,-23068.22776804,0.00019339,7]
[424973487,1781364651000,-151.0,0.00018382,2]
[424973535,1781364651000,-168.56113,0.00019178,2]
[424973517,1781364651000,-160.38637136,0.00018762,2]
[424973518,1781364651000,-151.0,0.00018806,2]
[424973527,1781364651000,-363.17124535,0.00019009,2]
[424973514,1781364651000,-7359.34145327,0.000187,2]
[424973496,1781364651000,-500.0,0.00018382,2]
[424973495,1781364651000,-151.0,0.00018382,2]
[424973513,1781364651000,-164.65,0.00018676,2]
[424973492,1781364651000,-151.0,0.00018382,2]
[424973494,1781364651000,-151.0,0.00018382,2]
[424973493,1781364651000,-500.0,0.00018382,2]
[424973497,1781364651000,-151.0,0.00018382,2]
[424973501,1781364651000,-151.0,0.00018382,2]
[424973499,1781364651000,-151.0,0.00018382,2]
[424973500,1781364651000,-151.0,0.00018382,2]
[424973503,1781364651000,-151.0,0.00018382,2]
[424973506,1781364651000,-1726.70077648,0.000184,2]
[424973498,1781364651000,-151.0,0.00018382,2]
[424973510,1781364651000,-7359.34145327,0.000185,2]
[424973515,1781364651000,-1726.70077648,0.000187,2]
[424973519,1781364651000,-7359.34145327,0.000189,2]
[424973507,1781364651000,-639.26,0.000184,2]
[424973512,1781364651000,-1418.95860551,0.00018537,2]
[424973511,1781364651000,-1726.70077648,0.000185,2]
[424973516,1781364651000,-501.0,0.00018705,2]
[424973508,1781364651000,-231.34324698,0.000184,2]
[424973509,1781364651000,-1552.4,0.0001841,2]
[424973502,1781364651000,-151.0,0.00018382,2]
[424973504,1781364651000,-151.0,0.00018382,2]
[424973570,1781364652000,-1943.828552,0.0002,2]
[424973587,1781364652000,-156.22114198,0.0002,20]
[424973572,1781364652000,-102337.0,0.0002,2]
[424973573,1781364652000,-1506.0,0.0002,2]
[424973576,1781364652000,-218.0,0.0002,2]
[424973575,1781364652000,-755.0,0.0002,2]
[424973578,1781364652000,-344.0,0.0002,2]
[424973577,1781364652000,-437.0,0.0002,2]
[424973581,1781364652000,-200.0,0.0002,10]
[424973585,1781364652000,-1047.0,0.0002,2]
[424973579,1781364652000,-1257.0,0.0002,2]
[424973594,1781364652000,-501.0,0.00020114,3]
[424973586,1781364652000,-386.0,0.0002,2]
[424973582,1781364652000,-459.0,0.0002,2]
[424973580,1781364652000,-2680.0,0.0002,2]
[424973583,1781364652000,-400.0,0.0002,2]
[424973589,1781364652000,-1842.0,0.0002,2]
[424973588,1781364652000,-6206.9,0.0002,2]
[424973590,1781364652000,-362.0,0.0002,2]
[424973592,1781364652000,-2319.72410669,0.00020026,2]
[424973591,1781364652000,-200.0,0.00020026,2]
[424973574,1781364652000,-216.029201,0.0002,7]
[424973593,1781364652000,-300.0,0.000201,10]
[424973584,1781364652000,-284.0,0.0002,2]
[424973569,1781364652000,-186.5,0.0002,5]
[424973544,1781364652000,-2236.95670847,0.00019478,2]
[424973568,1781364652000,-151.0,0.0002,5]
[424973597,1781364652000,-1552.4,0.00020381,2]
[424973543,1781364652000,-200.0,0.00019478,2]
[424973548,1781364652000,-7359.34145327,0.000197,2]
[424973547,1781364652000,-164.65,0.0001965,2]
[424973546,1781364652000,-1726.70077648,0.000195,2]
[424973549,1781364652000,-1726.70077648,0.000197,2]
[424973545,1781364652000,-7359.34145327,0.000195,2]
[424973550,1781364652000,-57025.00459,0.0001975,2]
[424973554,1781364652000,-500.0,0.00019862,2]
[424973553,1781364652000,-639.26,0.000198,2]
[424973552,1781364652000,-2253.4177118,0.0001975,2]
[424973571,1781364652000,-189395.0,0.0002,2]
[424973551,1781364652000,-67659.8481303,0.0001975,2]
[424973557,1781364652000,-980.587,0.00019862,2]
[424973561,1781364652000,-151.0,0.00019902,2]
[424973559,1781364652000,-1384.7043754,0.00019874,2]
[424973560,1781364652000,-184.33867712,0.000199,2]
[424973555,1781364652000,-500.0,0.00019862,2]
[424973564,1781364652000,-18746.0,0.0002,2]
[424973563,1781364652000,-272.00968676,0.0001995,4]
[424973565,1781364652000,-200.0,0.0002,2]
[424973562,1781364652000,-267.09,0.0001995,2]
[424973566,1781364652000,-151.0,0.0002,5]
[424973567,1781364652000,-177.54216715,0.0002,2]
[424973556,1781364652000,-500.0,0.00019862,2]
[424973596,1781364652000,-177.54216715,0.000202,2]
[424973558,1781364652000,-26526.3998764,0.00019869,2]
[424973598,1781364652000,-1275.0,0.0002039,2]
[424973629,1781364652000,-1047.0,0.00021,2]
[424973621,1781364652000,-755.0,0.00021,2]
[424973627,1781364652000,-459.0,0.00021,2]
[424973628,1781364652000,-284.0,0.00021,2]
[424973626,1781364652000,-2680.0,0.00021,2]
[424973633,1781364652000,-362.0,0.00021,2]
[424973634,1781364652000,-866.624057,0.00021,2]
[424973635,1781364652000,-866.624057,0.00021,2]
[424973636,1781364652000,-866.624057,0.00021,2]
[424973632,1781364652000,-150.0,0.00021,2]
[424973641,1781364652000,-369.53,0.00021205,2]
[424973630,1781364652000,-386.0,0.00021,2]
[424973639,1781364652000,-200.0,0.00021122,2]
[424973637,1781364652000,-866.624057,0.00021,2]
[424973640,1781364652000,-2494.55939288,0.00021122,2]
[424973638,1781364652000,-200.0,0.00021049,2]
[424973643,1781364652000,-674.01,0.00021273,2]
[424973648,1781364652000,-151.0,0.00021546,2]
[424973644,1781364652000,-1233.63,0.00021273,2]
[424973646,1781364652000,-501.0,0.00021523,5]
[424973645,1781364652000,-10210.83,0.00021273,2]
[424973647,1781364652000,-831.0,0.00021538,2]
[424973649,1781364652000,-639.26,0.000216,2]
[424973595,1781364652000,-1418.95860551,0.0002012,2]
[424973642,1781364652000,-2747.3017699,0.00021273,2]
[424973631,1781364652000,-1842.0,0.00021,2]
[424973650,1781364652000,-6206.9,0.00021666,2]
[424973625,1781364652000,-1257.0,0.00021,2]
[424973624,1781364652000,-344.0,0.00021,2]
[424973607,1781364652000,-150.0,0.000205,2]
[424973600,1781364652000,-1228.0,0.0002039,2]
[424973602,1781364652000,-3644.0,0.0002039,2]
[424973601,1781364652000,-1359.0,0.0002039,2]
[424973608,1781364652000,-150.0,0.000205,2]
[424973605,1781364652000,-2253.4177118,0.00020447,2]
[424973603,1781364652000,-177.54216715,0.000204,2]
[424973606,1781364652000,-151.0,0.0002045,2]
[424973604,1781364652000,-6835.8804759,0.00020433,2]
[424973610,1781364652000,-2405.55389863,0.00020574,2]
[424973609,1781364652000,-200.0,0.00020574,2]
[424973599,1781364652000,-383.0,0.0002039,2]
[424973616,1781364652000,-151.0,0.00020998,2]
[424973617,1781364652000,-200.0,0.00021,2]
[424973612,1781364652000,-177.54216715,0.000206,2]
[424973615,1781364652000,-831.0,0.00020853,2]
[424973613,1781364652000,-164.65,0.00020624,2]
[424973619,1781364652000,-10671.94898218,0.00021,2]
[424973614,1781364652000,-501.0,0.00020818,4]
[424973618,1781364652000,-1943.828552,0.00021,2]
[424973623,1781364652000,-437.0,0.00021,2]
[424973620,1781364652000,-5996.7038972,0.00021,4]
[424973622,1781364652000,-218.0,0.00021,2]
[424973611,1781364652000,-150.0,0.0002058,2]
[424973688,1781364653000,-450.0,0.00022,2]
[424973687,1781364653000,-459.0,0.00022,2]
[424973685,1781364653000,-1257.0,0.00022,2]
[424973686,1781364653000,-2680.0,0.00022,2]
[424973682,1781364653000,-1000.0,0.00022,12]
[424973680,1781364653000,-218.0,0.00022,2]
[424973684,1781364653000,-344.0,0.00022,2]
[424973681,1781364653000,-437.0,0.00022,2]
[424973679,1781364653000,-755.0,0.00022,2]
[424973683,1781364653000,-1000.0,0.00022,12]
[424973690,1781364653000,-1047.0,0.00022,2]
[424973692,1781364653000,-867.54,0.00022,2]
[424973693,1781364653000,-1842.0,0.00022,2]
[424973695,1781364653000,-151.0,0.00022056,2]
[424973694,1781364653000,-362.0,0.00022,2]
[424973689,1781364653000,-284.0,0.00022,2]
[424973698,1781364653000,-151.283773,0.00022056,2]
[424973696,1781364653000,-151.0,0.00022056,2]
[424973701,1781364653000,-151.0,0.00022056,2]
[424973699,1781364653000,-151.0,0.00022056,2]
[424973702,1781364653000,-286.819809,0.00022056,2]
[424973678,1781364653000,-1943.828552,0.00022,2]
[424973705,1781364653000,-1243.076552,0.00022056,2]
[424973691,1781364653000,-386.0,0.00022,2]
[424973677,1781364653000,-1000.0,0.00022,10]
[424973666,1781364653000,-800.0,0.00021918,2]
[424973676,1781364653000,-206.0,0.00021976,2]
[424973700,1781364653000,-151.0,0.00022056,2]
[424973652,1781364653000,-2586.85809042,0.0002167,2]
[424973654,1781364653000,-5000.0,0.00021918,2]
[424973655,1781364653000,-150.0,0.00021918,2]
[424973660,1781364653000,-800.0,0.00021918,2]
[424973653,1781364653000,-1418.95860551,0.00021702,2]
[424973656,1781364653000,-800.0,0.00021918,2]
[424973659,1781364653000,-800.0,0.00021918,2]
[424973661,1781364653000,-800.0,0.00021918,2]
[424973662,1781364653000,-800.0,0.00021918,2]
[424973658,1781364653000,-800.0,0.00021918,2]
[424973657,1781364653000,-800.0,0.00021918,2]
[424973663,1781364653000,-805.64967789,0.00021918,2]
[424973674,1781364653000,-904.0,0.00021918,2]
[424973664,1781364653000,-800.0,0.00021918,2]
[424973672,1781364653000,-2000.0,0.00021918,2]
[424973665,1781364653000,-800.0,0.00021918,2]
[424973671,1781364653000,-826.87228175,0.00021918,2]
[424973670,1781364653000,-800.0,0.00021918,2]
[424973673,1781364653000,-2000.0,0.00021918,2]
[424973667,1781364653000,-800.0,0.00021918,2]
[424973669,1781364653000,-800.0,0.00021918,2]
[424973668,1781364653000,-800.0,0.00021918,2]
[424973675,1781364653000,-150.0,0.00021918,2]
[424973697,1781364653000,-286.245694,0.00022056,2]
[424973651,1781364653000,-200.0,0.0002167,2]
[424973704,1781364653000,-1243.076552,0.00022056,2]
[424973733,1781364653000,-237.05488945,0.00022056,2]
[424973738,1781364653000,-500.0,0.00022056,2]
[424973731,1781364653000,-200.56199589,0.00022056,2]
[424973735,1781364653000,-160.43235665,0.00022056,2]
[424973736,1781364653000,-500.0,0.00022056,2]
[424973739,1781364653000,-578.20924308,0.00022056,2]
[424973742,1781364653000,-500.0,0.00022056,2]
[424973748,1781364653000,-151.0,0.00022056,2]
[424973744,1781364653000,-500.0,0.00022056,2]
[424973745,1781364653000,-151.0,0.00022056,2]
[424973740,1781364653000,-500.0,0.00022056,2]
[424973737,1781364653000,-771.63317921,0.00022056,2]
[424973741,1781364653000,-500.0,0.00022056,2]
[424973747,1781364653000,-152.0,0.00022056,2]
[424973750,1781364653000,-4853.74383408,0.00022056,2]
[424973749,1781364653000,-209.40437684,0.00022056,2]
[424973752,1781364653000,-500.0,0.00022056,2]
[424973753,1781364653000,-209.40437684,0.00022056,2]
[424973751,1781364653000,-151.0,0.00022056,2]
[424973757,1781364653000,-152.0,0.00022056,2]
[424973754,1781364653000,-152.0,0.00022056,2]
[424973755,1781364653000,-209.40437684,0.00022056,2]
[424973756,1781364653000,-500.0,0.00022056,2]
[424973706,1781364653000,-151.0,0.00022056,2]
[424973746,1781364653000,-500.0,0.00022056,2]
[424973734,1781364653000,-200.0,0.00022056,2]
[424973743,1781364653000,-152.0,0.00022056,2]
[424973728,1781364653000,-1481.2378076,0.00022056,2]
[424973732,1781364653000,-500.0,0.00022056,2]
[424973708,1781364653000,-241.953272,0.00022056,2]
[424973707,1781364653000,-1243.076552,0.00022056,2]
[424973717,1781364653000,-1191.11104074,0.00022056,2]
[424973712,1781364653000,-417.224131,0.00022056,2]
[424973714,1781364653000,-1068.11,0.00022056,2]
[424973713,1781364653000,-1030.0,0.00022056,2]
[424973710,1781364653000,-417.224131,0.00022056,2]
[424973711,1781364653000,-417.224131,0.00022056,2]
[424973709,1781364653000,-417.224131,0.00022056,2]
[424973716,1781364653000,-1148.61238259,0.00022056,2]
[424973715,1781364653000,-1107.63007,0.00022056,2]
[424973703,1781364653000,-1243.076552,0.00022056,2]
[424973724,1781364653000,-151.0,0.00022056,2]
[424973718,1781364653000,-1235.18214925,0.00022056,2]
[424973730,1781364653000,-1536.04360648,0.00022056,2]
[424973725,1781364653000,-1428.38747117,0.00022056,2]
[424973723,1781364653000,-1377.42282658,0.00022056,2]
[424973727,1781364653000,-156.587,0.00022056,2]
[424973729,1781364653000,-151.0,0.00022056,2]
[424973726,1781364653000,-153.05655402,0.00022056,2]
[424973722,1781364653000,-1328.27659266,0.00022056,2]
[424973721,1781364653000,-284.01862642,0.00022056,2]
[424973719,1781364653000,-174.61919141,0.00022056,2]
[424973720,1781364653000,-1280.88388877,0.00022056,2]
[424973796,1781364654000,-702.72,0.00022466,2]
[424973797,1781364654000,-2000.0,0.00022478,2]
[424973794,1781364654000,-151.0,0.00022441,2]
[424973789,1781364654000,-771.63317921,0.00022386,2]
[424973793,1781364654000,-771.63317921,0.00022441,2]
[424973786,1781364654000,-771.63317921,0.00022331,2]
[424973791,1781364654000,-863.937845,0.000224,7]
[424973785,1781364654000,-151.0,0.00022276,2]
[424973784,1781364654000,-771.63317921,0.00022276,2]
[424973795,1781364654000,-1375.96,0.00022466,2]
[424973792,1781364654000,-168.885571,0.000224,7]
[424973799,1781364654000,-904.0,0.00022478,2]
[424973798,1781364654000,-2000.0,0.00022478,2]
[424973804,1781364654000,-168.5,0.00022603,2]
[424973801,1781364654000,-151.0,0.00022496,2]
[424973800,1781364654000,-771.63317921,0.00022496,2]
[424973802,1781364654000,-771.63317921,0.00022551,2]
[424973805,1781364654000,-181.08010149,0.00022604,2]
[424973808,1781364654000,-200.0,0.00022604,2]
[424973806,1781364654000,-284.01862642,0.00022604,2]
[424973812,1781364654000,-217.15233878,0.00022604,2]
[424973810,1781364654000,-217.15233878,0.00022604,2]
[424973807,1781364654000,-153.05655402,0.00022604,2]
[424973788,1781364654000,-1552.4,0.00022353,2]
[424973803,1781364654000,-151.0,0.00022551,2]
[424973790,1781364654000,-151.0,0.00022386,2]
[424973760,1781364654000,-721.12765534,0.00022056,2]
[424973783,1781364654000,-501.0,0.00022227,5]
[424973759,1781364654000,-152.0,0.00022056,2]
[424973758,1781364654000,-500.0,0.00022056,2]
[424973761,1781364654000,-152.0,0.00022056,2]
[424973763,1781364654000,-152.0,0.00022056,2]
[424973764,1781364654000,-152.0,0.00022056,2]
[424973762,1781364654000,-152.0,0.00022056,2]
[424973769,1781364654000,-9552.16786547,0.00022056,2]
[424973766,1781364654000,-152.0,0.00022056,2]
[424973771,1781364654000,-160.13511027,0.00022056,2]
[424973767,1781364654000,-209.40437684,0.00022056,2]
[424973770,1781364654000,-155.65257845,0.00022056,2]
[424973787,1781364654000,-151.0,0.00022331,2]
[424973765,1781364654000,-152.0,0.00022056,2]
[424973773,1781364654000,-771.63317921,0.00022111,2]
[424973772,1781364654000,-151.0,0.00022094,2]
[424973774,1781364654000,-151.0,0.00022111,2]
[424973782,1781364654000,-831.0,0.00022223,2]
[424973777,1781364654000,-151.0,0.00022166,2]
[424973778,1781364654000,-200.0,0.00022218,2]
[424973776,1781364654000,-771.63317921,0.00022166,2]
[424973781,1781364654000,-151.0,0.00022221,2]
[424973779,1781364654000,-2682.57183977,0.00022218,2]
[424973780,1781364654000,-771.63317921,0.00022221,2]
[424973775,1781364654000,-1992.31162889,0.00022111,2]
[424973768,1781364654000,-693.39197629,0.00022056,2]
[424973809,1781364654000,-151.0,0.00022604,2]
[424973811,1781364654000,-151.0,0.00022604,2]
[424973815,1781364654000,-5088.34743037,0.00022604,2]
[424973842,1781364654000,-1047.0,0.00023,2]
[424973843,1781364654000,-386.0,0.00023,2]
[424973847,1781364654000,-152.0,0.00023099,3]
[424973845,1781364654000,-362.0,0.00023,2]
[424973846,1781364654000,-150.0,0.00023014,2]
[424973849,1781364654000,-284.01862642,0.00023152,2]
[424973848,1781364654000,-187.78006524,0.00023152,2]
[424973858,1781364654000,-151.0,0.0002319,2]
[424973850,1781364654000,-153.05655402,0.00023152,2]
[424973851,1781364654000,-151.0,0.00023152,2]